{"text_format":"1","workbook":"xlsx","n_sheets":2,"sheets":["Лист1","База"],"not_rendered":{"charts":0,"images":1,"macros":1,"external_links":0,"defined_names":1,"comments":1,"pivot_tables":1},"unopened":[],"bounds":{"document_bytes":16777216,"sheet_cells":100000,"rows_first":2000,"rows_last":500,"rows_between":2000,"halvings":0,"cell_chars":16384,"cell_head_chars":4096},"cells_cut":0,"cells_raw":0,"read":"whole","date_system":"1900"}

{"sheet":"Лист1","index":0,"n_rows":7,"n_cols":2,"rows_kept":7,"cut":false,"hidden":false,"merged":[]}
[]
[]
["Названия строк","Сумма по полю Расход ДТ, грн."]
["Январь",29590.002399999998]
["2014-01-08",29590.002399999998]
["2014-01-09",0]
["Общий итог",29590.002399999998]

{"sheet":"База","index":1,"n_rows":10,"n_cols":27,"rows_kept":10,"cut":false,"hidden":false,"merged":[[0,11,0,17],[0,0,0,10]]}
["ОБЩИЕ ДАННЫЕ ПО МАРШРУТУ",null,null,null,null,null,null,null,null,null,null,"РАСХОД ЗА ВЕСЬ МАРШРУТ (КРУГ)"]
["Месяц","Дата","Вид Маршрута","СТ, СПД","Маршрут","Расст.,км","Вес, кг.","Объем, м куб.","Доставка","Цена ДТ, грн.","Расход ДТ, л.","Расход ДТ, грн.","Командировочные","З/п","Цена маршрута","Расходы за рейс, грн","Затраты на ремонт (СТО), грн","ЗАТРАТЫ (ВСЕГО), грн","Стоимость затрат, другими перевозчиками","Прибыль от экспорта","Стоимость обратной загрузки","Себестоимость рейса с учетом обратной загрузки","Экономия","Стоимость перевозки 1кг.","1кг/1км, грн.","ЗАТРАТЫ СТ-СПД","К-во маршрутов"]
[{"$f":"IF(ISBLANK(B3),\"-\",TEXT($B3,\"ММММ\"))","v":"Январь"},"2014-01-08","Украина","СТ","Киев - Днепропетровск - Краматорск - Луганск",960,12962,96,3,10.18,770.26,{"$f":"J3*K3","v":7841.2467999999999},450,1200,5227,null,null,{"$f":"SUM(База[[#This Row],[Расход ДТ, грн.]:[З/п]], База[[#This Row],[Расходы за рейс, грн]:[Затраты на ремонт (СТО), грн]])","v":9491.2468000000008},8500,null,3000,{"$f":"База[[#This Row],[ЗАТРАТЫ (ВСЕГО), грн]]-База[[#This Row],[Стоимость обратной загрузки]]","v":6491.2468000000008},{"$f":"S3+База[[#This Row],[Прибыль от экспорта]]-V3","v":2008.7531999999992},{"$f":"IFERROR(База[[#This Row],[Себестоимость рейса с учетом обратной загрузки]]/База[[#This Row],[Вес, кг.]],0)","v":0.5007905261533715},{"$f":"IFERROR(База[[#This Row],[Расст.,км]]/База[[#This Row],[Вес, кг.]]*База[[#This Row],[Стоимость перевозки 1кг.]],0)","v":3.7089870784387947E-2},{"$f":"IF(База[[#This Row],[СТ, СПД]]=\"СТ\",База[[#This Row],[ЗАТРАТЫ (ВСЕГО), грн]],База[[#This Row],[Стоимость затрат, другими перевозчиками]])","v":9491.2468000000008},1]
["Январь","2014-01-08","Украина","СТ","Киев - Кировоград - Запорожье - Мелитополь",750,10958,96,3,10.18,608,6189.44,150,400,4112,null,null,{"$f":"SUM(База[[#This Row],[Расход ДТ, грн.]:[З/п]], База[[#This Row],[Расходы за рейс, грн]:[Затраты на ремонт (СТО), грн]])","v":6739.44},6500,null,2300,{"$f":"База[[#This Row],[ЗАТРАТЫ (ВСЕГО), грн]]-База[[#This Row],[Стоимость обратной загрузки]]","v":4439.4399999999996},{"$f":"S4+База[[#This Row],[Прибыль от экспорта]]-V4","v":2060.5600000000004},{"$f":"IFERROR(База[[#This Row],[Себестоимость рейса с учетом обратной загрузки]]/База[[#This Row],[Вес, кг.]],0)","v":0.40513232341668182},{"$f":"IFERROR(База[[#This Row],[Расст.,км]]/База[[#This Row],[Вес, кг.]]*База[[#This Row],[Стоимость перевозки 1кг.]],0)","v":2.7728530987635641E-2},{"$f":"IF(База[[#This Row],[СТ, СПД]]=\"СТ\",База[[#This Row],[ЗАТРАТЫ (ВСЕГО), грн]],База[[#This Row],[Стоимость затрат, другими перевозчиками]])","v":6739.44},1]
["Январь","2014-01-08","Украина","СТ","Киев - Коростень - Житомир - Винница",385,11041,96,4,10.18,329.84,3357.7711999999997,150,400,2446,null,null,{"$f":"SUM(База[[#This Row],[Расход ДТ, грн.]:[З/п]], База[[#This Row],[Расходы за рейс, грн]:[Затраты на ремонт (СТО), грн]])","v":3907.7711999999997},2600,null,2000,{"$f":"База[[#This Row],[ЗАТРАТЫ (ВСЕГО), грн]]-База[[#This Row],[Стоимость обратной загрузки]]","v":1907.7711999999997},{"$f":"S5+База[[#This Row],[Прибыль от экспорта]]-V5","v":692.22880000000032},{"$f":"IFERROR(База[[#This Row],[Себестоимость рейса с учетом обратной загрузки]]/База[[#This Row],[Вес, кг.]],0)","v":0.17278971107689517},{"$f":"IFERROR(База[[#This Row],[Расст.,км]]/База[[#This Row],[Вес, кг.]]*База[[#This Row],[Стоимость перевозки 1кг.]],0)","v":6.0251823896933831E-3},{"$f":"IF(База[[#This Row],[СТ, СПД]]=\"СТ\",База[[#This Row],[ЗАТРАТЫ (ВСЕГО), грн]],База[[#This Row],[Стоимость затрат, другими перевозчиками]])","v":3907.7711999999997},1]
["Январь","2014-01-08","Украина","СТ","Киев - Кременчуг - Кривой Рог",455,10075,96,3,10.18,411.92,4193.3455999999996,225,600,2687,null,320,{"$f":"SUM(База[[#This Row],[Расход ДТ, грн.]:[З/п]], База[[#This Row],[Расходы за рейс, грн]:[Затраты на ремонт (СТО), грн]])","v":5338.3455999999996},3000,null,2000,{"$f":"База[[#This Row],[ЗАТРАТЫ (ВСЕГО), грн]]-База[[#This Row],[Стоимость обратной загрузки]]","v":3338.3455999999996},{"$f":"S6+База[[#This Row],[Прибыль от экспорта]]-V6","v":-338.34559999999965},{"$f":"IFERROR(База[[#This Row],[Себестоимость рейса с учетом обратной загрузки]]/База[[#This Row],[Вес, кг.]],0)","v":0.33134943920595528},{"$f":"IFERROR(База[[#This Row],[Расст.,км]]/База[[#This Row],[Вес, кг.]]*База[[#This Row],[Стоимость перевозки 1кг.]],0)","v":1.496416822220443E-2},{"$f":"IF(База[[#This Row],[СТ, СПД]]=\"СТ\",База[[#This Row],[ЗАТРАТЫ (ВСЕГО), грн]],База[[#This Row],[Стоимость затрат, другими перевозчиками]])","v":5338.3455999999996},1]
["Январь","2014-01-08","Украина","СТ","Киев - Харьков",495,10674,120,4,10.18,438.2,4460.8760000000002,150,400,3076,null,null,{"$f":"SUM(База[[#This Row],[Расход ДТ, грн.]:[З/п]], База[[#This Row],[Расходы за рейс, грн]:[Затраты на ремонт (СТО), грн]])","v":5010.8760000000002},4500,null,1800,{"$f":"База[[#This Row],[ЗАТРАТЫ (ВСЕГО), грн]]-База[[#This Row],[Стоимость обратной загрузки]]","v":3210.8760000000002},{"$f":"S7+База[[#This Row],[Прибыль от экспорта]]-V7","v":1289.1239999999998},{"$f":"IFERROR(База[[#This Row],[Себестоимость рейса с учетом обратной загрузки]]/База[[#This Row],[Вес, кг.]],0)","v":0.30081281618887018},{"$f":"IFERROR(База[[#This Row],[Расст.,км]]/База[[#This Row],[Вес, кг.]]*База[[#This Row],[Стоимость перевозки 1кг.]],0)","v":1.3950004123429898E-2},{"$f":"IF(База[[#This Row],[СТ, СПД]]=\"СТ\",База[[#This Row],[ЗАТРАТЫ (ВСЕГО), грн]],База[[#This Row],[Стоимость затрат, другими перевозчиками]])","v":5010.8760000000002},1]
["Январь","2014-01-08","Украина","СТ","Киев - Хмельницкий",430,7456,96,1,10.18,348.46,3547.3227999999999,150,400,2372,null,null,{"$f":"SUM(База[[#This Row],[Расход ДТ, грн.]:[З/п]], База[[#This Row],[Расходы за рейс, грн]:[Затраты на ремонт (СТО), грн]])","v":4097.3227999999999},3000,null,1600,{"$f":"База[[#This Row],[ЗАТРАТЫ (ВСЕГО), грн]]-База[[#This Row],[Стоимость обратной загрузки]]","v":2497.3227999999999},{"$f":"S8+База[[#This Row],[Прибыль от экспорта]]-V8","v":502.67720000000008},{"$f":"IFERROR(База[[#This Row],[Себестоимость рейса с учетом обратной загрузки]]/База[[#This Row],[Вес, кг.]],0)","v":0.33494136266094421},{"$f":"IFERROR(База[[#This Row],[Расст.,км]]/База[[#This Row],[Вес, кг.]]*База[[#This Row],[Стоимость перевозки 1кг.]],0)","v":1.931662901612205E-2},{"$f":"IF(База[[#This Row],[СТ, СПД]]=\"СТ\",База[[#This Row],[ЗАТРАТЫ (ВСЕГО), грн]],База[[#This Row],[Стоимость затрат, другими перевозчиками]])","v":4097.3227999999999},1]
["Январь","2014-01-09","По Киеву","СТ","Киев (Полесская) - Киев (Склад)",50,10000,120,1,10.18,null,0,null,null,348,null,null,{"$f":"SUM(База[[#This Row],[Расход ДТ, грн.]:[З/п]], База[[#This Row],[Расходы за рейс, грн]:[Затраты на ремонт (СТО), грн]])","v":0},900,null,null,{"$f":"База[[#This Row],[ЗАТРАТЫ (ВСЕГО), грн]]-База[[#This Row],[Стоимость обратной загрузки]]","v":0},{"$f":"S9+База[[#This Row],[Прибыль от экспорта]]-V9","v":900},{"$f":"IFERROR(База[[#This Row],[Себестоимость рейса с учетом обратной загрузки]]/База[[#This Row],[Вес, кг.]],0)","v":0},{"$f":"IFERROR(База[[#This Row],[Расст.,км]]/База[[#This Row],[Вес, кг.]]*База[[#This Row],[Стоимость перевозки 1кг.]],0)","v":0},{"$f":"IF(База[[#This Row],[СТ, СПД]]=\"СТ\",База[[#This Row],[ЗАТРАТЫ (ВСЕГО), грн]],База[[#This Row],[Стоимость затрат, другими перевозчиками]])","v":0},1]
["Январь","2014-01-09","По Киеву","СТ","Киев (Склад) - Киев (Рынки)",5,2994,96,1,10.18,null,0,null,null,122,null,null,{"$f":"SUM(База[[#This Row],[Расход ДТ, грн.]:[З/п]], База[[#This Row],[Расходы за рейс, грн]:[Затраты на ремонт (СТО), грн]])","v":0},600,null,null,{"$f":"База[[#This Row],[ЗАТРАТЫ (ВСЕГО), грн]]-База[[#This Row],[Стоимость обратной загрузки]]","v":0},{"$f":"S10+База[[#This Row],[Прибыль от экспорта]]-V10","v":600},{"$f":"IFERROR(База[[#This Row],[Себестоимость рейса с учетом обратной загрузки]]/База[[#This Row],[Вес, кг.]],0)","v":0},{"$f":"IFERROR(База[[#This Row],[Расст.,км]]/База[[#This Row],[Вес, кг.]]*База[[#This Row],[Стоимость перевозки 1кг.]],0)","v":0},{"$f":"IF(База[[#This Row],[СТ, СПД]]=\"СТ\",База[[#This Row],[ЗАТРАТЫ (ВСЕГО), грн]],База[[#This Row],[Стоимость затрат, другими перевозчиками]])","v":0},1]